bitfinex-derivatives/quotes_SOLF0:USTF0_20250731
["timestamp","ask_amount","ask_price","bid_price","bid_amount"]
[1753931853993,4.21136245,180.18,180.15,3.05039206]
[1753931854193,4.67030553,180.22,180.15,3.05039206]
[1753931854396,4.21031924,180.21,180.15,3.05039206]
[1753931854592,4.21031924,180.2,180.15,3.05039206]
[1753931854891,4.21031924,180.19,180.15,3.05039206]
[1753931855098,4.21031924,180.18,180.15,3.05039206]
[1753931855394,4.67030553,180.22,180.15,3.05039206]
[1753931855597,4.209968,180.21,180.15,3.05039206]
[1753931855797,4.209968,180.2,180.15,3.05039206]
[1753931855994,4.209968,180.19,180.15,3.05039206]
[1753931856299,4.209968,180.18,180.15,3.05039206]
[1753931856498,4.67030553,180.22,180.15,3.05039206]
[1753931856699,4.20967281,180.21,180.15,3.05039206]
[1753931856895,4.20967281,180.2,180.15,3.05039206]
[1753931857195,4.20967281,180.19,180.15,3.05039206]
[1753931857395,4.20967281,180.18,180.15,3.05039206]
[1753931857696,4.67030553,180.22,180.15,3.05039206]
[1753931857999,4.20952839,180.21,180.15,3.05039206]
[1753931858301,4.20952839,180.2,180.15,3.05039206]
[1753931858495,4.20952839,180.19,180.15,3.05039206]
[1753931858695,4.67030553,180.23,180.15,3.05039206]
[1753931858896,4.20931566,180.22,180.15,3.05039206]
[1753931859096,4.20931566,180.21,180.15,3.05039206]
[1753931859297,4.20931566,180.2,180.15,3.05039206]
[1753931859497,4.20931566,180.19,180.15,3.05039206]
[1753931859700,4.67030553,180.23,180.15,3.05039206]
[1753931859901,4.20912745,180.22,180.15,3.05039206]
[1753931860102,4.20912745,180.21,180.15,3.05039206]
[1753931860307,4.20912745,180.2,180.15,3.05039206]
[1753931860502,4.20912745,180.19,180.15,3.05039206]
[1753931860803,4.67030553,180.23,180.15,3.05039206]
[1753931861002,4.20902012,180.22,180.15,3.05039206]
[1753931861203,4.20902012,180.21,180.15,3.05039206]
[1753931861501,4.20902012,180.2,180.15,3.05039206]
[1753931861701,4.20902012,180.19,180.15,3.05039206]
[1753931861902,4.67030553,180.23,180.15,3.05039206]
[1753931862204,4.20899605,180.22,180.15,3.05039206]
[1753931862403,11.92969364,180.22,180.13,3.05039206]
[1753931862604,3.05039206,180.2,180.11,3.05039206]
[1753931862800,4.20899605,180.19,180.11,3.05039206]
[1753931865805,4.20899605,180.19,180.13,3.05039206]
[1753931866310,4.20899605,180.18,180.13,3.05039206]
[1753931866504,4.20899605,180.17,180.13,3.05039206]
[1753931866711,4.67030553,180.21,180.13,3.05039206]
[1753931867011,4.21084314,180.2,180.13,3.05039206]
[1753931867212,4.21084314,180.19,180.13,3.05039206]
[1753931867413,4.21084314,180.18,180.13,3.05039206]
[1753931867614,4.67030553,180.22,180.13,3.05039206]
[1753931867814,4.21129779,180.21,180.13,3.05039206]
[1753931868014,4.21129779,180.2,180.13,3.05039206]
[1753931868216,4.21129779,180.19,180.13,3.05039206]
[1753931868405,4.21129779,180.18,180.13,3.05039206]
[1753931868608,4.67030553,180.22,180.13,3.05039206]
[1753931868809,4.21170008,180.21,180.13,3.05039206]
[1753931869115,4.21170008,180.2,180.13,3.05039206]
[1753931869315,4.21170008,180.19,180.13,3.05039206]
[1753931869516,4.21170008,180.18,180.13,3.05039206]
[1753931869716,4.67030553,180.22,180.13,3.05039206]
[1753931869916,4.21228906,180.21,180.13,3.05039206]
[1753931870212,4.21228906,180.2,180.13,3.05039206]
[1753931870408,4.21228906,180.19,180.13,3.05039206]
[1753931870605,4.21228906,180.18,180.13,3.05039206]
[1753931870815,1.95212681,180.21,180.16,1.95212681]
[1753931871109,4.21294388,180.2,180.16,1.95212681]
[1753931871313,4.21294388,180.19,180.16,1.95212681]
[1753931871515,4.21294388,180.18,180.02,203.66621479]
[1753931871714,1.95212681,180.21,180.16,1.95212681]
[1753931871915,4.21382791,180.2,180.16,1.95212681]
[1753931872108,4.21382791,180.19,180.16,1.95212681]
[1753931872307,4.21382791,180.18,180.16,1.95212681]
[1753931872513,1.95212681,180.21,180.16,1.95212681]
[1753931872717,4.21388426,180.2,180.16,1.95212681]
[1753931872920,4.21388426,180.19,180.16,1.95212681]
[1753931873215,4.21388426,180.18,180.16,1.95212681]
[1753931873419,1.95212681,180.21,180.16,1.95212681]
[1753931873618,4.21398814,180.2,180.16,1.95212681]
[1753931873913,4.21398814,180.19,180.16,1.95212681]
[1753931874117,4.21398814,180.18,180.16,1.95212681]
[1753931874322,4.67030553,180.22,180.16,1.95212681]
[1753931874617,4.21414063,180.21,180.02,203.66621479]
[1753931874812,4.21414063,180.2,180.02,203.66621479]
[1753931875017,4.21414063,180.19,180.18,1.95212681]
[1753931875415,4.21414063,180.19,180.02,216.07956773]
[1753931875621,4.67030553,180.23,180.17,1.95212681]
[1753931875822,6.16595202,180.22,180.17,1.95212681]
[1753931876122,4.21382521,180.21,180.17,1.95212681]
[1753931876315,4.21382521,180.2,180.17,1.95212681]
[1753931876514,4.21382521,180.19,180.17,1.95212681]
[1753931876723,1.95212681,180.22,180.17,1.95212681]
[1753931876923,4.2133452,180.21,180.19,1.95212681]
[1753931877119,1.95212681,180.24,180.19,1.95212681]
[1753931877320,4.21287676,180.23,180.19,1.95212681]
[1753931877521,4.21287676,180.22,180.19,1.95212681]
[1753931877717,1.95212681,180.24,180.19,1.95212681]
[1753931877918,4.21189728,180.23,180.19,1.95212681]
[1753931878119,4.21189728,180.22,180.19,1.95212681]
[1753931878320,4.67030553,180.26,180.19,1.95212681]
[1753931878523,1.95212681,180.24,180.19,1.95212681]
[1753931878720,4.21101039,180.23,180.19,1.95212681]
[1753931879022,4.21101039,180.22,180.19,1.95212681]
[1753931879223,1.95212681,180.24,180.19,1.95212681]
[1753931879428,4.21355329,180.23,180.19,1.95212681]
[1753931879618,4.21355329,180.22,180.19,1.95212681]
[1753931879814,1.95212681,180.24,180.19,1.95212681]
[1753931880117,4.21355324,180.23,180.19,1.95212681]
[1753931880323,4.21355324,180.22,180.19,1.95212681]
[1753931880521,1.95212681,180.24,180.19,1.95212681]
[1753931880721,4.21347624,180.23,180.19,1.95212681]
[1753931880916,1.95212681,180.24,180.19,1.95212681]
[1753931881221,4.21347624,180.23,180.19,1.95212681]
[1753931881421,4.21347624,180.22,180.19,1.95212681]
[1753931881624,1.95212681,180.24,180.19,1.95212681]
[1753931881922,4.21283806,180.23,180.19,1.95212681]
[1753931882219,4.21283806,180.22,180.19,1.95212681]
[1753931882423,1.95212681,180.24,180.19,1.95212681]
[1753931882617,4.21234077,180.23,180.19,1.95212681]
[1753931882815,4.21234077,180.22,180.19,1.95212681]
[1753931883025,1.95212681,180.24,180.19,1.95212681]
[1753931883224,4.21248618,180.23,180.19,1.95212681]
[1753931883426,4.21248618,180.22,180.19,1.95212681]
[1753931883628,1.95212681,180.24,180.19,1.95212681]
[1753931883824,4.21226775,180.23,180.19,1.95212681]
[1753931884023,4.21226775,180.22,180.19,1.95212681]
[1753931884229,4.66469761,180.26,180.19,1.95212681]
[1753931884427,1.95212681,180.24,180.19,1.95212681]
[1753931884626,4.21198769,180.23,180.19,1.95212681]
[1753931885330,4.21198769,180.22,180.19,1.95212681]
[1753931885525,1.95212681,180.24,180.19,1.95212681]
[1753931885721,4.21239914,180.23,180.19,1.95212681]
[1753931886025,4.21239914,180.22,180.19,1.95212681]
[1753931886330,1.95212681,180.24,180.2,1.95212681]
[1753931886629,4.21265806,180.23,180.2,1.95212681]
[1753931886830,4.21265806,180.22,180.04,19.41335294]
[1753931887131,1.95212681,180.24,180.19,1.95212681]
[1753931887321,4.21263658,180.23,180.19,1.95212681]
[1753931887526,4.21263658,180.22,180.19,1.95212681]
[1753931887725,1.95212681,180.24,180.19,1.95212681]
[1753931887928,4.21311555,180.23,180.19,1.95212681]
[1753931888127,4.21311555,180.22,180.19,1.95212681]
[1753931888329,1.95212681,180.24,180.19,1.95212681]
[1753931888529,4.21369466,180.23,180.19,1.95212681]
[1753931888726,4.21369466,180.22,180.19,1.95212681]
[1753931888928,1.95212681,180.24,180.19,1.95212681]
[1753931889127,4.21369466,180.23,180.19,1.95212681]
[1753931889431,6.16582147,180.22,180.04,19.41335294]
[1753931889628,4.21369466,180.21,180.17,1.95212681]
[1753931892331,4.21369466,180.2,180.17,1.95212681]
[1753931892634,1.95212681,180.23,180.19,1.95212681]
[1753931892825,4.21731058,180.22,180.19,1.95212681]
[1753931893026,4.21731058,180.21,180.19,1.95212681]
[1753931893231,4.21731058,180.2,180.19,1.95212681]
[1753931894636,4.66469761,180.25,180.19,1.95212681]
[1753931894834,6.16987661,180.24,180.21,1.95212681]
[1753931895034,4.2177498,180.23,180.21,1.95212681]
[1753931895340,4.2177498,180.22,180.19,1.95212681]
[1753931895541,4.2177498,180.21,180.19,1.95212681]
[1753931895741,1.95212681,180.24,180.19,1.95212681]
[1753931895940,4.21763037,180.23,180.19,1.95212681]
[1753931896239,4.21763037,180.22,180.19,1.95212681]
[1753931896438,4.21763037,180.21,180.19,1.95212681]
[1753931896641,1.95212681,180.24,180.04,19.41335294]
[1753931896940,4.21753995,180.23,180.19,1.95212681]
[1753931897141,4.21753995,180.22,180.19,1.95212681]
[1753931897341,4.21753995,180.21,180.19,1.95212681]
[1753931897542,1.95212681,180.24,180.19,1.95212681]
[1753931897839,4.2174711,180.23,180.19,1.95212681]
[1753931898042,4.2174711,180.22,180.19,1.95212681]
[1753931898243,4.2174711,180.21,180.19,1.95212681]
[1753931898443,1.95212681,180.24,180.19,1.95212681]
[1753931898644,4.21743028,180.23,180.19,1.95212681]
[1753931898845,4.21743028,180.22,180.19,1.95212681]
[1753931899038,4.21743028,180.21,180.19,1.95212681]
[1753931899236,1.95212681,180.24,180.19,1.95212681]
[1753931899442,4.21741495,180.23,180.19,1.95212681]
[1753931899641,4.21741495,180.23,180.04,19.41335294]
[1753931899642,4.21741495,180.22,180.04,19.41335294]
[1753931899943,4.21741495,180.21,180.18,1.95212681]
[1753931900143,4.21741495,180.2,180.18,1.95212681]
[1753931900443,6.61682442,180.24,180.18,1.95212681]
[1753931900644,4.21770021,180.23,180.18,1.95212681]
[1753931900838,4.21770021,180.22,180.18,1.95212681]
[1753931901038,4.21770021,180.21,180.18,1.95212681]
[1753931901234,4.21770021,180.2,180.18,1.95212681]
[1753931901438,6.61682442,180.24,180.18,1.95212681]
[1753931901644,4.21779537,180.23,180.18,1.95212681]
[1753931901942,4.21779537,180.22,180.18,1.95212681]
[1753931902144,4.21779537,180.21,180.18,1.95212681]
[1753931902443,4.21779537,180.2,180.18,1.95212681]
[1753931902643,6.61682442,180.24,180.18,1.95212681]
[1753931902846,4.2179103,180.23,180.18,1.95212681]
[1753931903042,4.2179103,180.22,180.18,1.95212681]
[1753931903245,4.2179103,180.21,180.18,1.95212681]
[1753931903438,4.2179103,180.2,180.18,1.95212681]
[1753931903634,6.61682442,180.24,180.18,1.95212681]
[1753931903835,4.21806031,180.23,180.18,1.95212681]
[1753931904043,4.21806031,180.22,180.18,1.95212681]
[1753931904241,4.21806031,180.21,180.18,1.95212681]
[1753931904442,4.21806031,180.2,180.18,1.95212681]
[1753931904638,6.61682442,180.24,180.18,1.95212681]
[1753931904843,4.21814949,180.23,180.18,1.95212681]
[1753931905042,4.21814949,180.22,180.18,1.95212681]
[1753931905244,4.21814949,180.21,180.2,1.95212681]
[1753931918958,4.21814949,180.21,180.19,1.95212681]
[1753931919258,4.21814949,180.2,180.19,1.95212681]
[1753931919457,6.61682442,180.24,180.19,1.95212681]
[1753931919458,4.21814949,180.23,180.19,1.95212681]
[1753931919653,4.21814949,180.22,180.19,1.95212681]
[1753931919853,4.21814949,180.21,180.19,1.95212681]
[1753931920054,4.21814949,180.2,180.19,1.95212681]
[1753931920257,8.8828471,180.23,180.19,1.95212681]
[1753931920457,4.21814949,180.22,180.19,1.95212681]
[1753931920758,4.21814949,180.21,180.19,1.95212681]
[1753931921058,4.21814949,180.2,180.19,1.95212681]
[1753931921454,4.21814949,180.23,180.19,1.95212681]
[1753931921759,4.21814949,180.22,180.08,12.41335294]
[1753931921954,4.66469761,180.26,180.08,19.41335294]
[1753931922155,4.23072619,180.25,180.08,189.26397251]
[1753931922356,4.23072619,180.24,180.08,189.26397251]
[1753931922657,4.23072619,180.23,180.08,189.26397251]
[1753931922858,4.23072619,180.22,180.08,189.26397251]
[1753931923060,6.61682442,180.26,180.22,1.95212681]
[1753931923254,4.2300784,180.25,180.22,1.95212681]
[1753931923455,4.2300784,180.24,180.22,1.95212681]
[1753931923658,4.2300784,180.23,180.22,1.95212681]
[1753931934272,4.2300784,180.23,180.08,7.0]
[1753931934461,4.2300784,180.22,180.2,1.95212681]
[1753931934665,4.66469761,180.26,180.2,1.95212681]
[1753931934861,6.17892026,180.25,180.2,1.95212681]
[1753931935066,4.22679345,180.24,180.2,1.95212681]
[1753931935270,4.22679345,180.23,180.2,1.95212681]
[1753931935470,4.22679345,180.22,180.2,1.95212681]
[1753931935773,4.22679345,180.21,180.2,1.95212681]
[1753931936159,1.95212681,180.25,180.2,1.95212681]
[1753931936370,4.22705493,180.24,180.2,1.95212681]
[1753931936565,4.22705493,180.23,180.2,1.95212681]
[1753931936772,4.22705493,180.22,180.2,1.95212681]
[1753931937071,1.95212681,180.25,180.2,1.95212681]
[1753931937262,4.2270524,180.24,180.2,1.95212681]
[1753931937466,4.2270524,180.23,180.2,1.95212681]
[1753931937668,4.2270524,180.22,180.2,1.95212681]
[1753931937868,1.95212681,180.25,180.2,1.95212681]
[1753931938068,4.22718535,180.24,180.2,1.95212681]
[1753931938269,4.22718535,180.23,180.2,1.95212681]
[1753931938573,4.22718535,180.22,180.2,1.95212681]
[1753931938869,1.95212681,180.25,180.2,1.95212681]
[1753931939068,4.23500074,180.24,180.2,1.95212681]
[1753931939261,4.23500074,180.23,180.2,1.95212681]
[1753931939460,4.23500074,180.22,180.2,1.95212681]
[1753931939671,1.95212681,180.25,180.2,1.95212681]
[1753931939871,4.2351936,180.24,180.2,1.95212681]
[1753931940072,4.2351936,180.23,180.2,1.95212681]
[1753931940272,4.2351936,180.22,180.2,1.95212681]
[1753931940571,1.95212681,180.25,180.2,1.95212681]
[1753931940772,4.23516637,180.24,180.2,1.95212681]
[1753931940973,4.23516637,180.23,180.2,1.95212681]
[1753931941171,4.23516637,180.22,180.08,7.0]
[1753931941371,4.66469761,180.26,180.22,1.95212681]
[1753931941574,4.23516883,180.25,180.22,1.95212681]
[1753931941772,4.23516883,180.24,180.22,1.95212681]
[1753931941968,4.23516883,180.23,180.22,1.95212681]
[1753931942972,4.23516883,180.23,180.15,167.97074903]
[1753931943178,4.66469761,180.27,180.22,1.95212681]
[1753931943375,4.23467376,180.26,180.22,1.95212681]
[1753931943570,4.23467376,180.25,180.22,1.95212681]
[1753931943771,4.23467376,180.24,180.22,1.95212681]
[1753931944068,4.23467376,180.23,180.22,1.95212681]
[1753931945676,4.23467376,180.23,180.15,167.97074903]
[1753931945876,1.95212681,180.26,180.22,1.95212681]
[1753931946077,4.2345857,180.25,180.22,1.95212681]
[1753931946277,4.2345857,180.24,180.22,1.95212681]
[1753931946476,4.2345857,180.23,180.22,1.95212681]
[1753931946869,4.2345857,180.25,180.22,1.95212681]
[1753931947074,4.2345857,180.24,180.22,1.95212681]
[1753931947270,1.95212681,180.26,180.22,1.95212681]
[1753931947271,4.2345857,180.23,180.22,1.95212681]
[1753931947474,4.2345857,180.25,180.22,1.95212681]
[1753931949176,4.2345857,180.24,180.22,1.95212681]
[1753931949373,4.2345857,180.23,180.22,1.95212681]
[1753931949574,4.2345857,180.25,180.22,1.95212681]
[1753931949774,4.2345857,180.24,180.22,1.95212681]
[1753931949973,4.2345857,180.23,180.22,1.95212681]
[1753931950174,4.2345857,180.25,180.22,1.95212681]
[1753931950376,4.2345857,180.24,180.22,1.95212681]
[1753931950577,4.2345857,180.23,180.22,1.95212681]
[1753931950976,4.2345857,180.25,180.22,1.95212681]
[1753931951176,4.2345857,180.24,180.22,1.95212681]
[1753931951373,4.2345857,180.23,180.22,1.95212681]
[1753931951675,4.2345857,180.25,180.22,1.95212681]
[1753931951879,4.2345857,180.24,180.22,1.95212681]
[1753931952077,4.2345857,180.23,180.22,1.95212681]
[1753931952671,4.2345857,180.25,180.22,1.95212681]
[1753931952879,4.2345857,180.24,180.22,1.95212681]
[1753931953072,4.2345857,180.23,180.22,1.95212681]
[1753931953277,4.2345857,180.25,180.22,1.95212681]
[1753931953477,4.2345857,180.24,180.22,1.95212681]
[1753931953679,4.2345857,180.23,180.22,1.95212681]
[1753931954075,4.2345857,180.25,180.22,1.95212681]
[1753931954278,4.2345857,180.24,180.22,1.95212681]
[1753931954481,4.2345857,180.23,180.22,1.95212681]
[1753931954877,4.2345857,180.25,180.22,1.95212681]
[1753931955077,4.2345857,180.24,180.22,1.95212681]
[1753931955279,4.2345857,180.23,180.22,1.95212681]
[1753931955478,4.2345857,180.25,180.22,1.95212681]
[1753931955783,4.2345857,180.24,180.22,1.95212681]
[1753931956082,4.2345857,180.23,180.22,1.95212681]
[1753931956286,4.2345857,180.25,180.22,1.95212681]
[1753931956479,4.2345857,180.24,180.15,167.97074903]
[1753931956683,4.2345857,180.23,180.21,1.95212681]
[1753931956886,4.2345857,180.22,180.21,1.95212681]
[1753931957086,4.2345857,180.25,180.21,1.95212681]
[1753931957383,4.2345857,180.24,180.21,1.95212681]
[1753931957582,4.2345857,180.23,180.21,1.95212681]
[1753931957785,4.66469761,180.25,180.21,1.95212681]
[1753931957786,4.2345857,180.22,180.21,1.95212681]
[1753931957980,4.2345857,180.24,180.21,1.95212681]
[1753931958181,4.2345857,180.23,180.21,1.95212681]
[1753931958479,4.2345857,180.22,180.21,1.95212681]
[1753931958674,4.2345857,180.24,180.21,1.95212681]
[1753931958887,4.2345857,180.23,180.21,1.95212681]
[1753931959184,4.2345857,180.22,180.21,1.95212681]
[1753931959486,4.2345857,180.24,180.21,1.95212681]
[1753931959785,4.2345857,180.23,180.21,1.95212681]
[1753931959983,4.2345857,180.22,180.21,1.95212681]
[1753931960285,4.2345857,180.24,180.21,1.95212681]
[1753931960486,4.2345857,180.23,180.21,1.95212681]
[1753931960684,4.2345857,180.22,180.21,1.95212681]
[1753931961279,4.2345857,180.24,180.21,1.95212681]
[1753931961482,4.2345857,180.23,180.21,1.95212681]
[1753931961782,4.2345857,180.22,180.21,1.95212681]
[1753931961976,4.2345857,180.24,180.21,1.95212681]
[1753931962184,4.2345857,180.23,180.21,1.95212681]
[1753931962380,4.2345857,180.22,180.21,1.95212681]
[1753931962585,4.2345857,180.24,180.21,1.95212681]
[1753931962780,4.2345857,180.23,180.21,1.95212681]
[1753931962985,4.2345857,180.22,180.21,1.95212681]
[1753931963281,4.2345857,180.24,180.21,1.95212681]
[1753931963485,4.2345857,180.23,180.21,1.95212681]
[1753931963689,4.2345857,180.22,180.21,1.95212681]
[1753931963980,4.2345857,180.24,180.21,1.95212681]
[1753931964183,4.2345857,180.23,180.21,1.95212681]
[1753931964384,4.2345857,180.22,180.21,1.95212681]
[1753931964688,4.2345857,180.24,180.15,167.97074903]
[1753931964886,4.2345857,180.23,180.21,1.95212681]
[1753931965084,4.2345857,180.22,180.21,1.95212681]
[1753931965487,4.2345857,180.24,180.21,1.95212681]
[1753931965688,4.2345857,180.23,180.21,1.95212681]
[1753931965987,4.2345857,180.22,180.21,1.95212681]
[1753931966186,4.2345857,180.24,180.21,1.95212681]
[1753931966388,4.2345857,180.23,180.21,1.95212681]
[1753931966586,4.2345857,180.22,180.21,1.95212681]
[1753931967382,4.2345857,180.24,180.21,1.95212681]
[1753931967583,4.2345857,180.23,180.21,1.95212681]
[1753931967787,4.2345857,180.22,180.21,1.95212681]
[1753931967990,4.2345857,180.24,180.21,1.95212681]
[1753931968189,4.2345857,180.23,180.21,1.95212681]
[1753931968389,4.2345857,180.22,180.21,1.95212681]
[1753931968593,4.2345857,180.22,180.18,1.95212681]
[1753931968793,4.2345857,180.21,180.18,1.95212681]
[1753931968991,4.2345857,180.2,180.18,1.95212681]
[1753931969191,6.61682442,180.24,180.18,1.95212681]
[1753931969391,4.24736433,180.23,180.2,1.95212681]
[1753931969693,4.24736433,180.22,180.2,1.95212681]
[1753931969891,4.24736433,180.21,180.2,1.95212681]
[1753931971288,4.24736433,180.21,180.15,167.97074903]
[1753931971591,6.61682442,180.24,180.2,1.95212681]
[1753931971790,4.24640481,180.23,180.2,1.95212681]
[1753931971992,4.24640481,180.22,180.2,1.95212681]
[1753931972193,4.24640481,180.21,180.2,1.95212681]
[1753931973897,4.24579039,180.21,180.2,1.95212681]
[1753931974896,4.24579039,180.21,180.18,1.95212681]
[1753931975102,4.24579039,180.2,180.18,1.95212681]
[1753931975396,4.24579039,180.19,180.18,1.95212681]
[1753931987012,1.95212681,180.22,180.18,1.95212681]
[1753931987313,4.24144473,180.21,180.18,1.95212681]
[1753931987513,4.24144473,180.2,180.18,1.95212681]
[1753931987713,1.95212681,180.22,180.18,1.95212681]
[1753931987913,4.24140038,180.21,180.18,1.95212681]
[1753931988114,4.24140038,180.2,180.18,1.95212681]
[1753931988414,1.95212681,180.22,180.18,1.95212681]
[1753931988612,4.24137792,180.21,180.18,1.95212681]
[1753931988814,4.24137792,180.2,180.18,1.95212681]
[1753931989013,1.95212681,180.22,180.18,1.95212681]
[1753931989316,4.24137792,180.21,180.18,1.95212681]
[1753931989616,4.24137792,180.2,180.18,1.95212681]
[1753931989814,1.95212681,180.22,180.18,1.95212681]
[1753931990015,4.24138534,180.21,180.18,1.95212681]
[1753931990316,4.24138534,180.2,180.17,1.95212681]
[1753931990513,4.24156524,180.19,180.17,1.95212681]
[1753931990713,1.95212681,180.22,180.17,1.95212681]
[1753931990916,4.24156524,180.21,180.17,1.95212681]
[1753931991113,4.24156524,180.2,180.17,1.95212681]
[1753931991312,4.24156524,180.19,180.17,1.95212681]
[1753931991515,1.95212681,180.22,180.17,1.95212681]
[1753931991818,4.24155758,180.21,180.17,1.95212681]
[1753931992013,4.24155758,180.2,180.17,1.95212681]
[1753931992316,4.24155758,180.19,180.17,1.95212681]
[1753931992511,4.24155758,180.18,180.15,1.95212681]
[1753931992816,4.24155758,180.17,180.15,1.95212681]
[1753931993004,1.95212681,180.2,180.15,1.95212681]
[1753931993209,4.24195292,180.19,180.15,1.95212681]
[1753931993408,6.19407973,180.18,180.13,1.95212681]
[1753931993608,4.24195292,180.17,180.13,1.95212681]
[1753931993808,4.24195292,180.16,180.13,1.95212681]
[1753931994008,1.95212681,180.18,180.13,1.95212681]
[1753931994212,4.24128821,180.17,180.13,1.95212681]
[1753931994407,1.95212681,180.18,180.13,1.95212681]
[1753931994408,4.24128821,180.16,180.13,1.95212681]
[1753931994608,1.95212681,180.18,180.13,1.95212681]
[1753931994815,4.24024774,180.17,180.13,1.95212681]
[1753931995018,4.24024774,180.16,180.13,1.95212681]
[1753931995212,1.95212681,180.18,180.13,1.95212681]
[1753931995412,4.23929785,180.17,180.13,1.95212681]
[1753931995618,4.23929785,180.16,180.02,7.0]
[1753931995820,1.95212681,180.18,180.14,1.95212681]
[1753931996023,4.23932649,180.17,180.14,1.95212681]
[1753931996323,1.95212681,180.18,180.14,1.95212681]
[1753931996523,4.23862618,180.17,180.14,1.95212681]
[1753931996720,1.95212681,180.18,180.14,1.95212681]
[1753931996923,4.23862618,180.17,180.14,1.95212681]
[1753931997125,1.95212681,180.18,180.14,1.95212681]
[1753931997424,4.23862618,180.17,180.14,1.95212681]
[1753931997626,1.95212681,180.18,180.14,1.95212681]
[1753931997828,4.23805198,180.17,180.14,1.95212681]
[1753931998028,4.23805198,180.16,180.14,1.95212681]
[1753931998231,1.95212681,180.18,180.14,1.95212681]
[1753931998430,4.23824629,180.17,180.14,1.95212681]
[1753931998630,4.23824629,180.16,180.14,1.95212681]
[1753931998826,1.95212681,180.18,180.14,1.95212681]
[1753931999024,4.25213653,180.17,180.14,1.95212681]
[1753931999229,4.25213653,180.16,180.14,1.95212681]
[1753931999428,1.95212681,180.18,180.02,7.0]
[1753931999632,4.25146792,180.17,180.13,1.95212681]
[1753931999931,4.25146792,180.16,180.13,1.95212681]
[1753932000230,1.95212681,180.18,180.13,1.95212681]
[1753932000430,4.2515595,180.17,180.13,1.95212681]
[1753932000632,4.2515595,180.16,180.13,1.95212681]
[1753932000834,1.95212681,180.18,180.13,1.95212681]
[1753932001028,4.2515595,180.17,180.13,1.95212681]
[1753932001229,4.2515595,180.16,180.13,1.95212681]
[1753932001428,1.95212681,180.18,180.13,1.95212681]
[1753932001630,4.25175273,180.17,180.13,1.95212681]
[1753932001927,4.25175273,180.16,180.13,1.95212681]
[1753932002127,1.95212681,180.18,180.13,1.95212681]
[1753932002332,4.25103874,180.17,180.13,1.95212681]
[1753932002528,4.25103874,180.16,180.13,1.95212681]
[1753932002832,1.95212681,180.18,180.13,1.95212681]
[1753932003031,4.25044645,180.17,180.13,1.95212681]
[1753932003234,4.25044645,180.16,180.13,1.95212681]
[1753932003433,1.95212681,180.18,180.13,1.95212681]
[1753932003732,4.24995282,180.17,180.13,1.95212681]
[1753932003932,4.24995282,180.16,180.13,1.95212681]
[1753932004134,1.95212681,180.18,180.13,1.95212681]
[1753932004433,4.24995282,180.17,180.13,1.95212681]
[1753932004728,4.24995282,180.16,180.13,1.95212681]
[1753932004927,4.67839934,180.21,180.15,1.95212681]
[1753932005125,6.2015635,180.2,180.15,1.95212681]
[1753932005329,4.24943669,180.19,180.15,1.95212681]
[1753932005529,4.24943669,180.18,180.15,1.95212681]
[1753932005729,4.24943669,180.17,180.15,1.95212681]
[1753932005936,1.95212681,180.2,180.15,1.95212681]
[1753932006125,4.24938019,180.19,180.15,1.95212681]
[1753932006329,4.24938019,180.18,180.15,1.95212681]
[1753932006632,1.95212681,180.2,180.15,1.95212681]
[1753932006829,1.95212681,180.2,180.02,7.0]
[1753932006830,4.24941861,180.19,180.17,1.95212681]
[1753932007033,4.67839934,180.24,180.19,1.95212681]
[1753932007234,4.24877537,180.23,180.19,1.95212681]
[1753932007432,4.24877537,180.22,180.19,1.95212681]
[1753932007637,4.24877537,180.21,180.19,1.95212681]
[1753932007833,4.24877537,180.2,180.02,19.41335294]
[1753932008033,4.67839934,180.24,180.19,1.95212681]
[1753932008236,4.24902817,180.23,180.19,1.95212681]
[1753932008534,4.24902817,180.22,180.19,1.95212681]
[1753932008736,4.24902817,180.21,180.19,1.95212681]
[1753932008937,4.24902817,180.2,180.19,1.95212681]
[1753932009133,6.63052615,180.26,180.19,1.95212681]
[1753932009437,4.24880464,180.25,180.22,1.95212681]
[1753932009637,4.24880464,180.24,180.22,1.95212681]
[1753932009937,4.24880464,180.23,180.22,1.95212681]
[1753932010936,4.24880464,180.25,180.22,1.95212681]
[1753932013242,4.24880464,180.25,180.05,12.41335294]
[1753932013441,4.24880464,180.25,180.23,1.95212681]
[1753932015938,4.24880464,180.24,180.23,1.95212681]
[1753932016142,4.24880464,180.26,180.23,1.95212681]
[1753932016443,4.24880464,180.25,180.23,1.95212681]
[1753932016743,4.24880464,180.24,180.23,1.95212681]
[1753932018046,4.24880464,180.24,180.06,7.0]
[1753932018248,4.24880464,180.23,180.2,1.95212681]
[1753932018439,4.24880464,180.22,180.2,1.95212681]
[1753932018635,4.24880464,180.21,180.2,1.95212681]
[1753932018836,4.24880464,180.24,180.2,1.95212681]
[1753932019451,4.24880464,180.23,180.06,7.0]
[1753932019748,4.24880464,180.22,180.2,1.95212681]
[1753932019949,4.24880464,180.21,180.2,1.95212681]
[1753932020247,4.24880464,180.24,180.2,1.95212681]
[1753932020446,1.95212681,180.25,180.2,1.95212681]
[1753932020447,4.24880464,180.23,180.2,1.95212681]
[1753932020648,4.24880464,180.22,180.2,1.95212681]
[1753932020848,4.24880464,180.21,180.2,1.95212681]
[1753932021843,4.24880464,180.24,180.2,1.95212681]